fUST/lending_fUST_20240417
["ID","MTS","AMOUNT","RATE_DAILY","PERIOD"]
[322813913,1713353440963,-860.55057948,0.00032053,5]
[322813914,1713353440972,-2853.0,0.00032877,30]
[322813915,1713353440982,-5200.0,0.000329,9]
[322813916,1713353440991,-395.0,0.00033,2]
[322813917,1713353441001,-418.88767512,0.0003392,3]
[322813918,1713353441010,-465.62426375,0.00034,4]
[322813919,1713353441019,-417.0,0.00034034,2]
[322813920,1713353441027,-2948.96689228,0.0003488,120]
[322813921,1713353441036,-663.28711677,0.00034995,4]
[322813922,1713353441045,-539.00286328,0.00034997,4]
[322813923,1713353441054,-1669.42037848,0.00034998,4]
[322813924,1713353441064,-374.34212687,0.00034998,4]
[322813925,1713353441073,-156.98200501,0.00034998,4]
[322813926,1713353441082,-1781.32,0.00034999,2]
[322813927,1713353441091,-1781.32,0.00034999,2]
[322813928,1713353441101,-1781.32,0.00034999,2]
[322813929,1713353441110,-1781.32,0.00034999,2]
[322813930,1713353441120,-1781.32,0.00034999,2]
[322813931,1713353441130,-1781.32,0.00034999,2]
[322813932,1713353441140,-1781.32,0.00034999,2]
[322813933,1713353441149,-1781.32,0.00034999,2]
[322813934,1713353441158,-1781.32,0.00034999,2]
[322813935,1713353441167,-13656.86,0.00034999,2]
[322813936,1713353441177,-597.24868455,0.00035,2]
[322813937,1713353441186,-214.26513963,0.00035,4]
[322813938,1713353441195,-6854.57305226,0.00035,4]
[322813939,1713353441205,-1351.51924304,0.00035,4]
[322813940,1713353441214,-389750.59456277,0.00035,30]
[322813941,1713353441224,-12732.38586644,0.00035,4]
[322813942,1713353441233,-151.0,0.00035,2]
[322813943,1713353441242,-565.30346311,0.00035616,2]
[322813944,1713353441252,-1760.362469,0.00035616,120]
[322813945,1713353441261,-154.87609912,0.0003589,2]
[322813946,1713353441271,-154.8889487,0.0003663,3]
[322813947,1713353441280,-54099.7343,0.00036778,30]
[322813948,1713353441289,-2924.16055736,0.00037,2]
[322813949,1713353441298,-417.0,0.00037034,2]
[322813950,1713353441308,-3000.0,0.000375,32]
[322813951,1713353441318,-3000.0,0.0003751,32]
[322813952,1713353441327,-3000.0,0.0003752,32]
[322813953,1713353441337,-3000.0,0.0003753,32]
[322813954,1713353441347,-3000.0,0.0003754,32]
[322813955,1713353441356,-3000.0,0.0003755,32]
[322813956,1713353441366,-3000.0,0.0003756,32]
[322813957,1713353441375,-3806.913403,0.0003757,32]
[322813958,1713353441384,-181.0,0.00038,2]
[322813959,1713353441393,-150.84915085,0.00038066,2]
[322813960,1713353441403,-500.0,0.00038356,2]
[322813961,1713353441412,-500.0,0.00038356,2]
[322813962,1713353441421,-500.0,0.00038356,2]
[322813963,1713353441431,-525.85082443,0.00038356,2]
[322813964,1713353441440,-500.0,0.00038356,30]
[322813965,1713353441449,-399.3831436,0.00038356,30]
[322813966,1713353441459,-211.921275,0.00038356,2]
[322813967,1713353441537,-500.0,0.00038356,30]
[322813968,1713353441555,-500.0,0.00038356,30]
[322813969,1713353441565,-500.0,0.00038356,30]
[322813970,1713353441574,-500.0,0.00038356,30]
[322813971,1713353441584,-500.0,0.00038356,30]
[322813972,1713353441593,-500.0,0.00038356,30]
[322813973,1713353441602,-500.0,0.00038356,30]
[322813974,1713353441611,-500.0,0.00038356,30]
[322813975,1713353441620,-500.0,0.00038356,30]
[322813976,1713353441629,-500.0,0.00038356,30]
[322813977,1713353441638,-500.0,0.00038356,30]
[322813978,1713353441647,-500.0,0.00038356,30]
[322813979,1713353441657,-583.13070165,0.00038356,30]
[322813980,1713353441666,-500.0,0.00038356,30]
[322813981,1713353441675,-500.0,0.00038356,30]
[322813982,1713353441685,-500.0,0.00038356,30]
[322813983,1713353441694,-500.0,0.00038356,30]
[322813984,1713353441706,-500.0,0.00038356,30]
[322813985,1713353441715,-500.0,0.00038356,30]
[322813986,1713353441724,-500.0,0.00038356,30]
[322813987,1713353441733,-500.0,0.00038356,30]
[322813988,1713353441742,-500.0,0.00038356,30]
[322813989,1713353441753,-500.0,0.00038356,30]
[322813990,1713353441762,-500.0,0.00038356,30]
[322813991,1713353441771,-500.0,0.00038356,30]
[322813992,1713353441780,-500.0,0.00038356,30]
[322813993,1713353441791,-500.0,0.00038356,30]
[322813994,1713353441801,-415.21265721,0.00038356,30]
[322813995,1713353441810,-500.0,0.00038356,30]
[322813996,1713353441819,-507.78846085,0.00038356,30]
[322813997,1713353441828,-500.0,0.00038356,30]
[322813998,1713353441838,-500.0,0.00038356,30]
[322813999,1713353441848,-500.0,0.00038356,30]
[322814000,1713353441857,-500.0,0.00038356,30]
[322814001,1713353441865,-500.0,0.00038356,30]
[322814002,1713353441874,-500.0,0.00038356,30]
[322814003,1713353441884,-500.0,0.00038356,30]
[322814004,1713353441893,-500.0,0.00038356,30]
[322814005,1713353441903,-500.0,0.00038356,30]
[322814006,1713353441912,-500.0,0.00038356,30]
[322814007,1713353441921,-500.0,0.00038356,30]
[322814008,1713353441932,-500.0,0.00038356,30]
[322814009,1713353441941,-500.0,0.00038356,30]
[322814010,1713353441950,-500.0,0.00038356,30]
[322814011,1713353441960,-500.0,0.00038356,30]
[322814012,1713353441969,-500.0,0.00038356,30]
[322814013,1713353441979,-500.0,0.00038356,30]
[322814014,1713353441988,-177.73600583,0.00038356,30]
[322814015,1713353441997,-500.0,0.00038356,30]
[322814016,1713353442006,-500.0,0.00038356,30]
[322814017,1713353442015,-500.0,0.00038356,30]
[322814018,1713353442024,-500.0,0.00038356,30]
[322814019,1713353442032,-500.0,0.00038356,30]
[322814020,1713353442042,-500.0,0.00038356,30]
[322814021,1713353442051,-500.0,0.00038356,30]
[322814022,1713353442060,-500.0,0.00038356,30]
[322814023,1713353442069,-500.0,0.00038356,30]
[322814024,1713353442079,-500.0,0.00038356,30]
[322814025,1713353442090,-151.0,0.00038356,2]
[322814026,1713353442098,-262.619822,0.00038356,2]
[322814027,1713353442107,-6671.72,0.00038356,2]
[322814028,1713353442116,-888.653985,0.00038356,2]
[322814029,1713353442125,-888.653985,0.00038356,2]
[322814030,1713353442134,-888.653985,0.00038356,2]
[322814031,1713353442143,-151.0,0.00038356,2]
[322814032,1713353442152,-151.0,0.00038356,2]
[322814033,1713353442161,-225.878864,0.00038356,2]
[322814034,1713353442170,-888.653985,0.00038356,2]
[322814035,1713353442181,-888.653985,0.00038356,2]
[322814036,1713353442190,-888.653985,0.00038356,2]
[322814037,1713353442199,-151.0,0.00038356,2]
[322814038,1713353442208,-151.0,0.00038356,2]
[322814039,1713353442217,-151.0,0.00038356,2]
[322814040,1713353442226,-11753.85,0.00038356,30]
[322814041,1713353442235,-11753.85,0.00038356,30]
[322814042,1713353442245,-11753.85,0.00038356,30]
[322814043,1713353442255,-11753.85,0.00038356,30]
[322814044,1713353442270,-11753.85,0.00038356,30]
[322814045,1713353442286,-11753.85,0.00038356,30]
[322814046,1713353442301,-11753.85,0.00038356,30]
[322814047,1713353442312,-11753.85,0.00038356,30]
[322814048,1713353442327,-11753.85,0.00038356,30]
[322814049,1713353442341,-11753.85,0.00038356,30]
[322814050,1713353442356,-11753.85,0.00038356,30]
[322814051,1713353442370,-11753.85,0.00038356,30]
[322814052,1713353442382,-11753.85,0.00038356,30]
[322814053,1713353442395,-11753.85,0.00038356,30]
[322814054,1713353442409,-11753.85,0.00038356,30]
[322814055,1713353442422,-11753.85,0.00038356,30]
[322814056,1713353442438,-11753.85,0.00038356,30]
[322814057,1713353442450,-11753.85,0.00038356,30]
[322814058,1713353442464,-11753.85,0.00038356,30]
[322814059,1713353442478,-11753.85,0.00038356,30]
[322814060,1713353442492,-11753.85,0.00038356,30]
[322814061,1713353442505,-11753.85,0.00038356,30]
[322814062,1713353442519,-11753.85,0.00038356,30]
[322814063,1713353442533,-11753.93331409,0.00038356,30]
[322814064,1713353442547,-500.24946377,0.00038356,2]
[322814065,1713353442563,-500.0,0.00038356,30]
[322814066,1713353442576,-500.0,0.00038356,30]
[322814067,1713353442587,-500.0,0.00038356,30]
[322814068,1713353442599,-500.0,0.00038356,30]
[322814069,1713353442611,-500.0,0.00038356,30]
[322814070,1713353442625,-500.0,0.00038356,30]
[322814071,1713353442641,-500.0,0.00038356,30]
[322814072,1713353442653,-500.0,0.00038356,30]
[322814073,1713353442664,-500.0,0.00038356,30]
[322814074,1713353442675,-500.0,0.00038356,30]
[322814075,1713353442687,-500.0,0.00038356,30]
[322814076,1713353442700,-175.96832369,0.00038356,30]
[322814077,1713353442714,-400.49560572,0.00038356,2]
[322814078,1713353442726,-164.707897,0.00038356,2]
[322814079,1713353442737,-10000.0,0.000385,15]
[322814080,1713353442750,-201.0,0.000385,10]
[322814081,1713353442763,-181.0,0.0003863,14]
[322814082,1713353442775,-301.6983017,0.00038706,4]
[322814083,1713353442789,-900.98367189,0.000388,2]
[322814084,1713353442802,-159.42692816,0.00039053,7]
[322814085,1713353442813,-153.0,0.00039151,2]
[322814086,1713353442824,-306.0,0.00039151,2]
[322814087,1713353442836,-6671.72,0.00039178,12]
[322814088,1713353442848,-603.3966034,0.00039356,7]
[322814089,1713353442859,-165.152405,0.00039574,2]
[322814090,1713353442871,-300.0,0.00039926,2]
[322814091,1713353442885,-500.0,0.00039999,30]
[322814092,1713353442897,-500.0,0.00039999,30]
[322814093,1713353442909,-5311.92278101,0.0004,4]
[322814094,1713353442921,-193.42842652,0.0004,2]
[322814095,1713353442934,-201.67162124,0.0004,2]
[322814096,1713353442945,-40222.0,0.0004,7]
[322814097,1713353442957,-245448.92653978,0.0004,14]
[322814098,1713353442977,-294.81811996,0.0004,14]
[322814105,1713353444236,-19674.46796241,0.0004,14]
[322814112,1713353445091,-1089.26071762,0.00012394,2]
[322814113,1713353445101,-320.8540288,0.000299,2]
[322814114,1713353445110,-60580.5578708,0.0004,14]
[322814115,1713353445121,-1785.00000001,0.0004,14]
[322814121,1713353446862,-153.626163,0.00035,2]
[322814122,1713353446871,-180.0,0.00038356,2]
[322814123,1713353446880,-908.757849,0.0004,14]
[322814138,1713353917480,-519.26461656,0.00014795,2]
[322814139,1713353917506,-471.02610279,0.00014796,2]
[322814140,1713353917528,-154.86062544,0.00014797,2]
[322814141,1713353917550,-154.86062544,0.00014797,2]
[322814142,1713353917572,-154.86062544,0.00014797,2]
[322814143,1713353917593,-469.12528489,0.00014798,2]
[322814144,1713353917617,-154.86062544,0.00014798,2]
[322814145,1713353917638,-7858.55367278,0.00014798,2]
[322814146,1713353917659,-216.18479097,0.00014799,2]
[322814147,1713353917682,-525.74547902,0.00014799,2]
[322814148,1713353917703,-926.63477986,0.00014799,2]
[322814149,1713353917725,-152.85418973,0.000148,2]
[322814150,1713353917746,-300.0,0.00014896,2]
[322814151,1713353917767,-300.0,0.00014896,2]
[322814152,1713353917789,-161.84978394,0.00014897,2]
[322814153,1713353917809,-1575.3401522,0.00014897,2]
[322814154,1713353917829,-888.43676539,0.00014897,2]
[322814155,1713353917850,-15015.54188011,0.00014897,2]
[322814156,1713354015140,7204.58109004,0.0001,2]
[322814157,1713354021985,-193.3820055,0.00014787,2]
[322814158,1713354022008,-154.86062544,0.00014788,2]
[322814159,1713354022032,-274.0,0.00014788,2]
[322814160,1713354022056,-469.12528489,0.00014788,2]
[322814161,1713354022079,-161.84978394,0.00014789,2]
[322814162,1713354022100,-1575.3401522,0.00014789,2]
[322814163,1713354022121,-471.02610279,0.00014789,2]
[322814164,1713354022153,-300.0,0.00014789,2]
[322814165,1713354022181,-207.65285215,0.0001479,2]
[322814166,1713354022204,-525.74547902,0.0001479,2]
[322814167,1713354022226,-654.45266231,0.0001479,2]
[322814168,1713354022250,-5012.56505176,0.0001479,2]
[322814199,1713354127588,3669.73799739,0.0001479,10]
[322814200,1713354139508,3669.73799739,0.0001479,10]
[322814204,1713354161752,2856.84057752,0.0001479,10]
[322814205,1713354226812,-161.84978394,0.00013303,2]
[322814206,1713354226836,-193.3820055,0.00013303,2]
[322814207,1713354226858,-766.7573657,0.00013304,2]
[322814208,1713354226879,-471.02610279,0.00014684,2]
[322814209,1713354226901,-851.93917639,0.00014684,2]
[322814210,1713354226922,-2621.14214872,0.00014684,2]
[322814211,1713354226943,-361.60536711,0.00014684,2]
[322814212,1713354226971,-654.45266231,0.00014684,2]
[322814213,1713354226995,-2621.14214872,0.00014684,2]
[322814214,1713354227019,-207.65285215,0.00014684,2]
[322814215,1713354227042,-167.52776302,0.00014684,2]
[322814216,1713354227066,-746.57940186,0.00014685,2]
[322814217,1713354227090,-174.94322179,0.0001478,2]
[322814219,1713354265761,2440.07686414,0.0001479,10]
[322814258,1713354631900,-203.92427323,0.00012943,2]
[322814260,1713354631909,-654.45266231,0.00012944,2]
[322814262,1713354631920,-167.52776302,0.00012945,2]
[322814264,1713354631930,-467.87279548,0.00012946,2]
[322814266,1713354631939,-1934.55003292,0.00012946,2]
[322814268,1713354631949,-525.74547902,0.00012947,2]
[322814270,1713354631958,-687.65219494,0.00012948,2]
[322814273,1713354631967,-72389.02048931,0.0001304,2]
[322814276,1713354631977,-216.18479097,0.00013041,2]
[322814279,1713354631987,-300.0,0.00013041,2]
[322814281,1713354631998,-300.0,0.00013041,2]
[322814283,1713354632007,-4761.47273223,0.00013041,2]
[322814322,1713354637919,-469.12528489,0.00012942,2]
[322814323,1713354637930,-525.74547902,0.00012942,2]
[322814324,1713354637939,-154.86062544,0.00012943,2]
[322814325,1713354637949,-3742.37168361,0.00012943,2]
[322814326,1713354637959,-7337.49692706,0.00012945,2]
[322814327,1713354637972,-521.05674572,0.00012945,2]
[322814328,1713354637982,-26501.51845991,0.00013041,2]
[322814329,1713354637992,-154.90705577,0.00013049,2]
[322814330,1713354638001,-6921.1263496,0.00013059,2]
[322814331,1713354638014,-944.0646584,0.00013068,2]
[322814332,1713354638024,-233.83610178,0.00013303,2]
[322814334,1713354638033,-24900.0,0.00013411,2]
[322814336,1713354638043,-1791.2996226,0.00013699,2]
[322814338,1713354638054,-495.523818,0.00013699,2]
[322814340,1713354638063,-142.87835264,0.00014301,2]
[322814343,1713354638075,-157.12164736,0.00014301,2]
[322814345,1713354638088,-404.21505934,0.00014345,2]
[322814346,1713354638100,-15.78494066,0.00014345,2]
[322814348,1713354638109,-179.48918773,0.00014779,2]
[322814350,1713354638119,-185.88478385,0.00014779,2]
[322814352,1713354638129,-882.33479028,0.00014779,2]
[322814354,1713354638138,-207.25664719,0.00014781,2]
[322814356,1713354638147,-308.80435151,0.00014781,2]
[322814358,1713354638156,-204.70329077,0.00014781,2]
[322814360,1713354638166,-1575.3401522,0.00014781,2]
[322814362,1713354638176,-2616.30161988,0.00014781,2]
[322814364,1713354638185,-603.49921849,0.00014781,2]
[322814366,1713354638195,-361.25297613,0.00014781,2]
[322814368,1713354638203,-191.00347886,0.0001479,2]
[322814370,1713354638212,-309.65936852,0.00014893,2]
[322814371,1713354638221,-155.21359446,0.00014894,2]
[322814373,1713354638231,-211.92127537,0.00014894,2]
[322814375,1713354638241,-172.85186883,0.000149,2]
[322814378,1713354638250,-172.85186883,0.000149,2]
[322814380,1713354638261,-2096.98803724,0.00015,2]
[322814382,1713354638270,-154.86062544,0.00015,2]
[322814383,1713354638280,-937.89373734,0.00015,2]
[322814386,1713354638290,-156.84586358,0.00015,2]
[322814388,1713354638299,-602.61216035,0.000185,2]
[322814390,1713354638309,-598.8133636,0.000189,2]
[322814391,1713354638319,-188.96976676,0.0001897,2]
[322814393,1713354638329,-740.74145172,0.00019,2]
[322814410,1713354638480,-259.25854828,0.00019,2]
[322814412,1713354638491,-154.86062544,0.00019,2]
[322814414,1713354638500,-171.475245,0.00019178,2]
[322814416,1713354638510,-3158.64788904,0.00019899,2]
[322814418,1713354638519,-164.86900124,0.0002,2]
[322814420,1713354638529,-521.03498526,0.0002,2]
[322814422,1713354638539,-237.92490957,0.0002,2]
[322814424,1713354638549,-400.0,0.0002,2]
[322814426,1713354638560,-406.49971412,0.0002,2]
[322814427,1713354638570,-688.59429255,0.0002,2]
[322814428,1713354638579,-200.0,0.0002,2]
[322814429,1713354638589,-495.523818,0.00020548,2]
[322814430,1713354638598,-158.857458,0.00022,2]
[322814431,1713354638608,-313.8132407,0.00022,2]
[322814432,1713354638617,-598.8133636,0.000239,2]
[322814433,1713354638626,-380.0,0.00024658,2]
[322814434,1713354638637,-154.86062544,0.00027,2]
[322814435,1713354638648,-8507.18295185,0.00027,2]
[322814436,1713354638657,-332.07459253,0.00027,2]
[322814437,1713354638667,-309.61302161,0.00027389,2]
[322814438,1713354638677,-154.87609912,0.00027396,2]
[322814439,1713354638686,-232.50525342,0.00027396,2]
[322814440,1713354638695,-167.014432,0.00027397,2]
[322814441,1713354638804,-392.7276,0.00027397,2]
[322814442,1713354638815,-1000.0,0.00027397,2]
[322814443,1713354638824,-166.666666,0.00027397,2]
[322814444,1713354638834,-206.424946,0.00027397,2]
[322814445,1713354638843,-155.3876248,0.00027998,2]
[322814446,1713354638853,-166.666666,0.00028038,2]
[322814447,1713354638863,-166.666666,0.00028679,2]
[322814448,1713354638872,-500.0,0.00028999,2]
[322814449,1713354638882,-500.0,0.00028999,2]
[322814450,1713354638891,-384.55293441,0.00028999,2]
[322814451,1713354638902,-500.0,0.00028999,2]
[322814452,1713354638912,-621.7073368,0.00028999,2]
[322814453,1713354638922,-500.0,0.00028999,2]
[322814454,1713354638933,-500.0,0.00028999,2]
[322814455,1713354638943,-230.80671795,0.00028999,2]
[322814456,1713354638953,-500.0,0.00028999,2]
[322814457,1713354638962,-186.34925983,0.00028999,2]
[322814458,1713354638974,-500.0,0.00028999,2]
[322814459,1713354638983,-500.0,0.00028999,2]
[322814460,1713354638992,-500.0,0.00028999,2]
[322814461,1713354639001,-500.0,0.00028999,2]
[322814462,1713354639010,-500.0,0.00028999,2]
[322814463,1713354639020,-500.0,0.00028999,2]
[322814464,1713354639029,-500.0,0.00028999,2]
[322814465,1713354639038,-34071.90805901,0.00029,2]
[322814466,1713354639050,-376.78328221,0.00029,2]
[322814467,1713354639062,-32228.30865878,0.00029,2]
[322814468,1713354639072,-166.666666,0.00029321,2]
[322814469,1713354639083,-252.09959415,0.000299,2]
[322814470,1713354639094,-252.09959405,0.000299,2]
[322814471,1713354639103,-252.09959405,0.000299,2]
[322814472,1713354639112,-252.09959405,0.000299,2]
[322814473,1713354639121,-252.09959405,0.000299,2]
[322814474,1713354639131,-252.09959405,0.000299,2]
[322814475,1713354639140,-252.09959405,0.000299,2]
[322814476,1713354639149,-252.09959405,0.000299,2]
[322814477,1713354639160,-252.09959405,0.000299,2]
[322814478,1713354639169,-252.09959405,0.000299,2]
[322814479,1713354639181,-252.09959405,0.000299,2]
[322814480,1713354639190,-252.09959405,0.000299,2]
[322814481,1713354639199,-252.09959405,0.000299,2]
[322814482,1713354639209,-252.09959405,0.000299,2]
[322814483,1713354639218,-166.666666,0.00029962,2]
[322814484,1713354639227,-154.86062544,0.0003,2]
[322814485,1713354639237,-150.0,0.0003,2]
[322814486,1713354639247,-165.0,0.0003,2]
[322814487,1713354639256,-166.666666,0.00030603,2]
[322814488,1713354639266,-320.4553623,0.000308,10]
[322814489,1713354639275,-417.0,0.00031634,2]
[322814490,1713354639285,-191.18536531,0.00032,4]
[322814491,1713354639296,-5200.0,0.000329,9]
[322814492,1713354639308,-165.0,0.00033,2]
[322814493,1713354639317,-392.7276,0.00033165,2]
[322814494,1713354639327,-206.424946,0.00033165,2]
[322814495,1713354639338,-465.62426375,0.00034,4]
[322814496,1713354639347,-201.0,0.000345,7]
[322814497,1713354639357,-417.0,0.00034634,2]
[322814498,1713354639366,-1000.0,0.000348,3]
[322814499,1713354639375,-165.0,0.00035,2]
[322814500,1713354639385,-12732.38586644,0.00035,4]
[322814501,1713354639396,-214.26513963,0.00035,4]
[322814502,1713354639407,-597.24868455,0.00035,2]
[322814503,1713354639419,-565.30346311,0.00035616,2]
[322814504,1713354639431,-2031.94927,0.00035616,120]
[322814505,1713354639440,-154.86062544,0.0003589,2]
[322814506,1713354639449,-1351.51924304,0.00036,4]
[322814507,1713354639459,-165.0,0.00036,2]
[322814508,1713354639469,-165.0,0.00036,2]
[322814509,1713354639479,-54099.7343,0.00036594,30]
[322814510,1713354639489,-745.24056546,0.00036701,4]
[322814511,1713354639498,-2924.16055736,0.00037,2]
[322814513,1713354639508,-1366.0,0.00037,4]
[322814514,1713354639517,-687.65219492,0.00037455,8]
[322814516,1713354639526,-150.8642222,0.00037494,2]
[322814518,1713354639536,-3000.0,0.000375,32]
[322814519,1713354639547,-3000.0,0.0003751,32]
[322814520,1713354639557,-3000.0,0.0003752,32]
[322814521,1713354639568,-3000.0,0.0003753,32]
[322814522,1713354639577,-3000.0,0.0003754,32]
[322814523,1713354639586,-3000.0,0.0003755,32]
[322814524,1713354639596,-3000.0,0.0003756,32]
[322814525,1713354639605,-3806.913403,0.0003757,32]
[322814526,1713354639615,-417.0,0.00037634,2]
[322814527,1713354639624,-165.0,0.00038,2]
[322814528,1713354639634,-181.0,0.00038,2]
[322814529,1713354639643,-301.7284444,0.00038124,4]
[322814530,1713354639653,-500.0,0.00038356,30]
[322814531,1713354639662,-500.0,0.00038356,30]
[322814532,1713354639672,-500.0,0.00038356,30]
[322814533,1713354639683,-500.0,0.00038356,30]
[322814534,1713354639692,-500.0,0.00038356,30]
[322814535,1713354639701,-500.0,0.00038356,30]
[322814536,1713354639710,-500.0,0.00038356,30]
[322814537,1713354639720,-500.0,0.00038356,30]
[322814538,1713354639731,-500.0,0.00038356,30]
[322814539,1713354639741,-500.0,0.00038356,30]
[322814540,1713354639752,-500.0,0.00038356,30]
[322814541,1713354639762,-175.96832369,0.00038356,30]
[322814542,1713354639772,-500.0,0.00038356,30]
[322814543,1713354639782,-500.0,0.00038356,30]
[322814544,1713354639792,-500.0,0.00038356,30]
[322814545,1713354639802,-500.0,0.00038356,30]
[322814546,1713354639813,-500.0,0.00038356,30]
[322814547,1713354639823,-500.0,0.00038356,30]
[322814548,1713354639833,-500.0,0.00038356,30]
[322814549,1713354639843,-500.0,0.00038356,30]
[322814550,1713354639853,-500.0,0.00038356,30]
[322814551,1713354639864,-500.0,0.00038356,30]
[322814552,1713354639874,-500.0,0.00038356,30]
[322814553,1713354639883,-500.0,0.00038356,30]
[322814554,1713354639894,-500.0,0.00038356,30]
[322814555,1713354639905,-536.84700076,0.00038356,30]
[322814556,1713354639915,-500.24946377,0.00038356,2]
[322814557,1713354639924,-500.0,0.00038356,30]
[322814558,1713354639936,-500.0,0.00038356,30]
[322814559,1713354639945,-500.0,0.00038356,30]
[322814560,1713354639954,-500.0,0.00038356,30]
[322814561,1713354639965,-500.0,0.00038356,30]
[322814562,1713354639975,-500.0,0.00038356,30]
[322814563,1713354639986,-500.0,0.00038356,30]
[322814564,1713354639996,-500.0,0.00038356,30]
[322814565,1713354640006,-500.0,0.00038356,30]
[322814566,1713354640015,-500.0,0.00038356,30]
[322814567,1713354640024,-500.0,0.00038356,30]
[322814568,1713354640034,-500.0,0.00038356,30]
[322814569,1713354640043,-500.0,0.00038356,30]
[322814570,1713354640053,-500.0,0.00038356,30]
[322814571,1713354640062,-500.0,0.00038356,30]
[322814572,1713354640072,-500.0,0.00038356,30]
[322814573,1713354640084,-500.0,0.00038356,30]
[322814574,1713354640094,-500.0,0.00038356,30]
[322814575,1713354640104,-500.0,0.00038356,30]
[322814576,1713354640113,-500.0,0.00038356,30]
[322814577,1713354640122,-500.0,0.00038356,30]
[322814578,1713354640133,-500.0,0.00038356,30]
[322814579,1713354640143,-500.0,0.00038356,30]
[322814580,1713354640153,-500.0,0.00038356,30]
[322814581,1713354640163,-415.21265721,0.00038356,30]
[322814582,1713354640174,-500.0,0.00038356,30]
[322814583,1713354640185,-507.78846085,0.00038356,30]
[322814584,1713354640195,-500.0,0.00038356,30]
[322814585,1713354640206,-500.0,0.00038356,30]
[322814586,1713354640216,-500.0,0.00038356,30]
[322814587,1713354640226,-500.0,0.00038356,30]
[322814588,1713354640237,-500.0,0.00038356,30]
[322814589,1713354640247,-500.0,0.00038356,30]
[322814590,1713354640257,-500.0,0.00038356,30]
[322814591,1713354640267,-500.0,0.00038356,30]
[322814592,1713354640276,-500.0,0.00038356,30]
[322814593,1713354640287,-500.0,0.00038356,30]
[322814594,1713354640298,-500.0,0.00038356,30]
[322814595,1713354640308,-500.0,0.00038356,30]
[322814596,1713354640319,-500.0,0.00038356,30]
[322814597,1713354640330,-500.0,0.00038356,30]
[322814598,1713354640340,-500.0,0.00038356,30]
[322814599,1713354640351,-500.0,0.00038356,30]
[322814600,1713354640361,-500.0,0.00038356,30]
[322814601,1713354640372,-500.0,0.00038356,30]
[322814602,1713354640383,-601.1275557,0.00038356,30]
[322814603,1713354640394,-500.0,0.00038356,30]
[322814604,1713354640406,-500.0,0.00038356,30]
[322814605,1713354640417,-583.13070165,0.00038356,30]
[322814606,1713354640428,-11881.01,0.00038356,30]
[322814607,1713354640439,-11881.01,0.00038356,30]
[322814608,1713354640449,-11881.01,0.00038356,30]
[322814609,1713354640459,-11881.01,0.00038356,30]
[322814610,1713354640471,-11881.01,0.00038356,30]
[322814611,1713354640482,-11881.01,0.00038356,30]
[322814612,1713354640494,-11881.01,0.00038356,30]
[322814613,1713354640582,-11881.01,0.00038356,30]
[322814614,1713354640593,-6776.85,0.00038356,2]
[322814615,1713354640603,-500.0,0.00038356,2]
[322814616,1713354640612,-500.0,0.00038356,2]
[322814617,1713354640623,-500.0,0.00038356,2]
[322814618,1713354640632,-525.85082443,0.00038356,2]
[322814619,1713354640641,-400.49560572,0.00038356,2]
[322814620,1713354640652,-181.0,0.0003863,14]
[322814621,1713354640661,-633.82028517,0.00038633,4]
[322814622,1713354640670,-188.67247846,0.00038634,4]
[322814623,1713354640682,-307.12403441,0.00038634,2]
[322814624,1713354640690,-603.4568888,0.00038764,7]